Cogmind - Beta 11 @@@ ROGUE MODE // 2022.04.17 @ 00:13:10 Player: Momo Result: Destroyed by as-53126 with Assembled Maul Performance ------------- Evolutions (0) 0 Regions Visited (4) 800 Robots Destroyed (11) 55 Value Destroyed (310) 310 Prototype IDs (0) 0 Alien Tech Used (0) 0 Bonus (0) 0 TOTAL SCORE: 1165 Bonus ------- None Cogmind --------- Core Integrity 0/250 Matter 291/300 Energy 49/100 System Corruption 11% Temperature Warning (398) Movement Core (50) Location -9/Mines Parts ------- > --- POWER (1) -------- (None) > --- PROPULSION (2) --- (None) > --- UTILITY (2) ------ (None) > --- WEAPON (2) ------- (None) > --- INVENTORY (5) ---- Ion Engine Aluminum Leg Medium Storage Unit Large Storage Unit Huge Storage Unit Peak State ------------ > --- POWER ------------ Improved Ion Engine > --- PROPULSION ------- Hover Unit Hover Unit > --- UTILITY ---------- Seismic Detector > --- WEAPON ----------- Particle Cannon Particle Cannon > --- INVENTORY -------- Ion Engine Aluminum Leg Small Storage Unit Medium Storage Unit Large Storage Unit [Rating: 9] Favorites ----------- Power Light Ion Engine Engine Light Ion Engine Propulsion Hover Unit Treads Light Treads Leg Aluminum Leg Hover Unit Hover Unit Utility Seismic Detector Device Seismic Detector Weapon Particle Cannon Energy Gun EM Pulse Gun Energy Cannon Particle Cannon Ballistic Gun Light Assault Rifle Build | -11 -10 -10 -10 -9 ------- Run | Scr Mat Min Exi Min Slots Evolved . | . . . . . Power . | . . . . . Propulsion . | . . . . . Utility . | . . . . . Weapon . | . . . . . Parts Attached 15 | 5 9 1 . . Power 3 | 1 1 1 . . Engine 3 | 1 1 1 . . Core . | . . . . . Reactor . | . . . . . Propulsion 5 | 2 3 . . . Treads 2 | 2 . . . . Leg 1 | . 1 . . . Wheel . | . . . . . Hover 2 | . 2 . . . Flight . | . . . . . Utility 1 | . 1 . . . Device 1 | . 1 . . . Storage . | . . . . . Processor . | . . . . . Hackware . | . . . . . Protection . | . . . . . Artifact . | . . . . . Weapon 6 | 2 4 . . . Energy Gun 3 | 1 2 . . . Energy Cannon 2 | . 2 . . . Ballistic Gun 1 | 1 . . . . Ballistic Cannon . | . . . . . Launcher . | . . . . . Special Weapon . | . . . . . Impact Weapon . | . . . . . Slashing Weapon . | . . . . . Piercing Weapon . | . . . . . Special Melee Weapon . | . . . . . Unidentified Prototypes . | . . . . . Parts Lost 7 | . 3 . . 4 Power 1 | . . . . 1 Propulsion 3 | . 1 . . 2 Utility 1 | . . . . 1 Weapon 2 | . 2 . . . Highest Loss Streak 4 | . 2 . . 4 To Critical Strikes . | . . . . . Average Slot Usage (%) 76 | . 67 85 85 85 Engine 14 | . 14 14 14 14 Treads 8 | . 17 . . . Leg 1 | . 3 . . . Hover 17 | . 7 28 28 28 Device 7 | . 1 14 14 14 Energy Gun 3 | . 6 . . . Energy Cannon 18 | . 9 28 28 28 Ballistic Gun 3 | . 7 . . . Naked Turns . | . . . . . Heaviest Build 16 | 8 16 16 12 12 Greatest Support 40 | 40 40 12 12 12 Greatest Overweight (x) 4 | . 4 1 . . Average Overweight (x) . | . . . . . Largest Inventory Capacity 5 | 5 5 5 5 5 Average Capacity 5 | 5 5 5 5 5 Most Carried 5 | 1 5 5 5 5 Average Carried 3 | . 2 5 5 5 Final Capacity 5 | 5 5 5 5 5 Final Carried 5 | 1 5 5 5 5 Class Distribution -------------------- 100% | Mutant Dominant Class ---------------- Mutant | -10/Materials Mutant | -10/Mines Mutant | -10/Exiles Mutant | -9/Mines Resources | -11 -10 -10 -10 -9 ----------- Run | Scr Mat Min Exi Min Matter Collected 306 | 65 186 55 . . Remotely . | . . . . . Salvage Created 375 | . 299 30 . 46 Parts 23 | . 20 3 . . Haulers Intercepted . | . . . . . Recyclers Shooed . | . . . . . Parts Field Recycled . | . . . . . Retrieved Matter . | . . . . . Parts Self-Destructed . | . . . . . Prevented . | . . . . . Kills | -11 -10 -10 -10 -9 ------- Run | Scr Mat Min Exi Min Combat Hostiles Destroyed 10 | . 7 . . 3 Melee 3 | . 3 . . . Guns 4 | . 4 . . . Cannons 3 | . . . . 3 Classes Destroyed 5 | . 3 1 . 1 Tunneler 2 | . . 2 . . Operator 1 | . 1 . . . Watcher 1 | . 1 . . . Grunt 7 | . 7 . . . Assembled 3 | . . . . 3 Best Kill Streak 3 | . 2 2 . 3 Combat Bots Only 3 | . 2 . . 3 Max Kills in Single Turn 1 | . 1 1 . 1 Gunslinging . | . . . . . Exploded . | . . . . . Melee 1 | . 1 . . . Uniques/NPCs Destroyed . | . . . . . Combat | -11 -10 -10 -10 -9 -------- Run | Scr Mat Min Exi Min Damage Taken 972 | . 495 . . 477 Core 254 | . 43 . . 211 Absorbed by Shields . | . . . . . Core Remaining (%) 100 | 100 . . . . Volleys Fired 36 | . 29 2 . 5 Largest 2 | . 2 2 . 2 Hottest 136 | . 136 136 . 136 Shots Fired 57 | . 43 4 . 10 Gun 37 | . 37 . . . Cannon 20 | . 6 4 . 10 Launcher . | . . . . . Special . | . . . . . Kinetic 21 | . 21 . . . Thermal 34 | . 20 4 . 10 Explosive . | . . . . . Electromagnetic 2 | . 2 . . . Robot Hit Streak 7 | . 7 1 . 2 Robot Miss Streak 3 | . 2 1 . 3 Penetration Max . | . . . . . Secondary Targets . | . . . . . Shots Hit Robots 32 | . 27 2 . 3 Core Hits 19 | . 15 1 . 3 Critical Kills 1 | . . 1 . . Critical Parts Destroyed . | . . . . . Critical Strikes 2 | . 1 1 . . Burn 1 | . 1 . . . Meltdown 1 | . . 1 . . Melee Attacks . | . . . . . Impact . | . . . . . Slashing . | . . . . . Piercing . | . . . . . Sneak Attacks . | . . . . . Combat Hostiles . | . . . . . Follow-up Attacks . | . . . . . Damage Inflicted 491 | . 307 41 . 143 Guns 244 | . 244 . . . Cannons 225 | . 41 41 . 143 Explosions . | . . . . . Melee . | . . . . . Ramming 22 | . 22 . . . Kinetic 100 | . 100 . . . Thermal 342 | . 158 41 . 143 Explosive . | . . . . . Electromagnetic 27 | . 27 . . . Impact . | . . . . . Slashing . | . . . . . Piercing . | . . . . . Highest Corruption 11 | . 2 2 2 11 Average Corruption 2 | . 2 2 2 2 Corruption Purged . | . . . . . Corruption Blocked . | . . . . . Effects 13 | . 5 2 3 3 Message Errors 4 | . 1 1 2 . Matter Fused 2 | . . . . 2 Heat Flow Errors 1 | . 1 . . . Energy Discharges 2 | . 2 . . . Data Loss (minor) 1 | . . . . 1 Data Loss (major) 1 | . . . 1 . Misfires 1 | . 1 . . . Alerts 1 | . . 1 . . Overload Shots . | . . . . . Overflow Damage . | . . . . . Projectiles . | . . . . . Explosions . | . . . . . Melee . | . . . . . Knockbacks . | . . . . . Impact . | . . . . . Kinetic . | . . . . . Secondary . | . . . . . Self-Inflicted Damage . | . . . . . Shots . | . . . . . Rammed 15 | . 15 . . . Targets Rammed 18 | . 18 . . . Kicked . | . . . . . Crushed 3 | . 3 . . . Highest Temperature 378 | . 332 153 . 378 Average Temperature 124 | . 116 77 . 223 Received Heat Transfer 337 | . 297 . . 40 Effects 2 | . 2 . . . Energy Bleed 2 | . 2 . . . Siege Activations . | . . . . . Robots Corrupted . | . . . . . Combat Hostiles . | . . . . . Parts Fried . | . . . . . Impact Corruptions . | . . . . . Robots Melted 1 | . . 1 . . Combat Hostiles . | . . . . . Parts Melted 5 | . 2 3 . . Heat Transferred 754 | . 421 74 . 259 Parts Sabotaged . | . . . . . Parts Stolen . | . . . . . Parts Stripped . | . . . . . Power Chain Reactions . | . . . . . Missiles Intercepted . | . . . . . Alert | -11 -10 -10 -10 -9 ------- Run | Scr Mat Min Exi Min Peak Influence 164 | . 164 10 . 30 Initial . | . . . . . Average 39 | . 60 9 . 9 Maximum Alert Level . | . . . . . Low Security (%) 100 | 100 100 100 . 100 Level 1 . | . . . . . Level 2 . | . . . . . Level 3 . | . . . . . Level 4 . | . . . . . Level 5 . | . . . . . High Security . | . . . . . Max Security . | . . . . . Squads Dispatched 2 | . 2 . . . Investigation . | . . . . . Extermination . | . . . . . Reinforcement 2 | . 2 . . . Assault . | . . . . . Garrison . | . . . . . Intercept . | . . . . . Searches Triggered . | . . . . . Construction Impeded . | . . . . . Haulers Reinforced . | . . . . . Active Scanning Responses . | . . . . . Cargo Convoy Interrupts . | . . . . . Stealth | -11 -10 -10 -10 -9 --------- Run | Scr Mat Min Exi Min Distress Signals . | . . . . . Communications Jammed . | . . . . . Distress Signals . | . . . . . Times Spotted 31 | . 13 . . 18 Peak Tracking Total 16 | . 4 . . 16 Tactical Retreats 3 | . . . . 3 Traps | -11 -10 -10 -10 -9 ------- Run | Scr Mat Min Exi Min Traps Triggered 1 | . 1 . . . Indirectly . | . . . . . Trap Hack Attempts . | . . . . . Triggered . | . . . . . Disarmed . | . . . . . Reprogrammed . | . . . . . Reused . | . . . . . Traps Extracted . | . . . . . Installed . | . . . . . Triggered . | . . . . . Machines | -11 -10 -10 -10 -9 ---------- Run | Scr Mat Min Exi Min Machines Disabled . | . . . . . Max in Single Turn . | . . . . . Machines Sabotaged . | . . . . . Garrisons Compromised . | . . . . . Overloaded Fab Kills . | . . . . . Hacking | -11 -10 -10 -10 -9 --------- Run | Scr Mat Min Exi Min Machines Accessed 1 | . 1 . . . Terminals 1 | . 1 . . . Fabricators . | . . . . . Repair Stations . | . . . . . Recycling Units . | . . . . . Scanalyzers . | . . . . . Garrison Access . | . . . . . Total Hacks 1 | . 1 . . . Successful 1 | . 1 . . . Failed . | . . . . . Catastrophic . | . . . . . Database Lockouts . | . . . . . Manual . | . . . . . Terminals 1 | . 1 . . . Fabricators . | . . . . . Repair Stations . | . . . . . Recycling Units . | . . . . . Scanalyzers . | . . . . . Garrison Access . | . . . . . Terminal Hacks 1 | . 1 . . . Record 1 | . 1 . . . Fabricator Hacks . | . . . . . Repair Station Hacks . | . . . . . Recycling Unit Hacks . | . . . . . Scanalyzer . | . . . . . Garrison Access Hacks . | . . . . . Unauthorized Hacks . | . . . . . Terminals . | . . . . . Fabricators . | . . . . . Repair Stations . | . . . . . Recycling Units . | . . . . . Scanalyzers . | . . . . . Garrison Access . | . . . . . Data Cores Recovered . | . . . . . Used . | . . . . . Hacking Detections . | . . . . . Full Trace Events . | . . . . . Feedback Events . | . . . . . Feedback Blocked . | . . . . . Robot Schematics Acquired . | . . . . . Robots Built . | . . . . . Authchips . | . . . . . Time . | . . . . . Total Robot Build Rating . | . . . . . Part Schematics Acquired . | . . . . . Parts Built . | . . . . . Authchips . | . . . . . Time . | . . . . . Total Part Build Rating . | . . . . . Parts Repaired . | . . . . . Time . | . . . . . Parts Recycled . | . . . . . Recycled Matter . | . . . . . Retrieved Matter . | . . . . . Retrieved Components . | . . . . . Parts Scanalyzed . | . . . . . Part Schematics Acquired . | . . . . . Parts Damaged . | . . . . . Bothacking | -11 -10 -10 -10 -9 ------------ Run | Scr Mat Min Exi Min Used RIF Installer . | . . . . . Robots Hacked . | . . . . . Non-combat . | . . . . . Combat . | . . . . . Robot Hacks Applied . | . . . . . Relay Couplers Released . | . . . . . Fabnet Peak Effective % . | . . . . . Robots Rewired . | . . . . . Allies Hacked . | . . . . . Hacks Repelled . | . . . . . Allies | -11 -10 -10 -10 -9 -------- Run | Scr Mat Min Exi Min Total Allies 2 | . . 2 . . Largest Group 2 | . . 2 2 . Highest-Rated Group 46 | . . 46 46 . Highest-Rated Ally 31 | . . 31 31 . Total Orders . | . . . . . Ally Attacks . | . . . . . Total Damage . | . . . . . Kills . | . . . . . Allies Corrupted . | . . . . . Allies Melted . | . . . . . Intel | -11 -10 -10 -10 -9 ------- Run | Scr Mat Min Exi Min Robot Analysis Total . | . . . . . Derelict Logs Recovered 2 | . . 1 . 1 Drone Launches . | . . . . . Drone Recoveries . | . . . . . Exploration | -11 -10 -10 -10 -9 ------------- Run | Scr Mat Min Exi Min Turns Passed 1047 | 61 497 171 213 105 Spaces Moved 1034 | 36 271 185 381 161 Core 6 | 4 1 . . 1 Treads 148 | 32 116 . . . Legs 49 | . 49 . . . Wheels . | . . . . . Hover 831 | . 105 185 381 160 Flight . | . . . . . Fastest Speed 50 | 50 116 56 56 50 Average Speed 81 | 147 140 57 56 55 Slowest Speed 250 | 160 250 116 56 56 Overloaded Moves . | . . . . . Propulsion Burnouts . | . . . . . Robots Hopped . | . . . . . Cave-ins Triggered . | . . . . . Exploration Rate (%) 45 | 3 43 47 88 48 Regions Visited 4 Branch Regions 3 Pre-discovered Areas 1 | . . 1 . . Known Exits Taken . | . . . . . Unknown Exits Taken 4 | 1 1 1 1 . Scrap Searched 1 | . . 1 . . Spaces Dug . | . . . . . Terrain Destroyed . | . . . . . Melee . | . . . . . Projectile . | . . . . . AOE . | . . . . . Terrain Rammed . | . . . . . Walls Destroyed . | . . . . . Machines Disabled . | . . . . . Actions | -11 -10 -10 -10 -9 --------- Run | Scr Mat Min Exi Min Total 1169 | 41 337 245 380 166 Wait 59 | . 4 55 . . Move 1030 | 35 270 184 380 161 Hop . | . . . . . Pick Up 5 | 1 3 1 . . Fast Attach 14 | 5 8 1 . . Attach . | . . . . . Detach . | . . . . . Swap 1 | . 1 . . . Drop 6 | . 4 2 . . Fire 36 | . 29 2 . 5 Melee . | . . . . . Ram . | . . . . . Kick . | . . . . . Crush 18 | . 18 . . . Escape Stasis . | . . . . . Rewire . | . . . . . Trap . | . . . . . Miscellaneous . | . . . . . Route ------- -11/Scrapyard -10/Materials (discovered 2 exits: [*Mat] / [*Min]) -10/Mines -10/Exiles -9/Mines History --------- Turn | Location | Event 7 | -11/Scrapyard | Discovered new exit (range 15) 62 | -11/Scrapyard | Entered Materials 310 | -10/Materials | Build established: Mutant 429 | -10/Materials | Discovered new exit (range 7) 546 | -10/Materials | Discovered new exit (range 13) 559 | -10/Materials | Entered Mines 575 | -10/Mines | Learned location of Storage (-7) 671 | -10/Mines | Deemed a non-threat by the Exiles lab entrance 672 | -10/Mines | Discovered new exit (range 5) 730 | -10/Mines | Entered Exiles 730 | -10/Exiles | Found Exiles lab abandoned 730 | -10/Exiles | Accompanied by 2 allies 760 | -10/Exiles | Led the pair of lost Derelicts to a safe place 934 | -10/Exiles | Discovered new exit (range 15) 943 | -10/Exiles | Entered Mines 1015 | -9/Mines | Assembled infested the area 1020 | -9/Mines | Assisted by a Guerilla fighting off Assembled 1030 | -9/Mines | Learned Materials terminal intel 1043 | -9/Mines | Core integrity fell below 50% 1046 | -9/Mines | Met a Derelict bent on vengeance 1047 | -9/Mines | System corruption reached 10% 1048 | -9/Mines | Core integrity fell below 20% 1048 | -9/Mines | Released all parts (2) 1048 | -9/Mines | Destroyed by as-53126 with Assembled Maul Last Messages --------------- 01005_ K-01 Serf collects debris. 01015_ ALERT: Infestation in the mines, dispatching Demolisher response squad. 01018_ TP-R2E(h): "I'll hold them off! Go on ahead or try to find another way!" 01030_ Acquired derelict log, extracted data. Data stored: Materials terminal intel. 01033_ as-87958 destroyed. 01040_ Lgt. Ion Engine destroyed. 01040_ Hover Unit destroyed. 01040_ System corrupted by crushing effect (+3). 01040_ System corrupted by crushing effect (+1). 01040_ Knocked back. 01042_ as-02074 destroyed. 01045_ as-04014 destroyed. 01046_ Seismic Detector destroyed. 01046_ System corrupted by crushing effect (+5). 01047_ Hover Unit destroyed. 01048_ System corrupted: Matter fused (-9). 01048_ Released Particle Cannon. Map ----- +----------------------------------------------------+ | ?????# ######?###???????????????? | | ?????# #???????????????? | | ?????## ######### #???????????????? | | ??????# ##???????# #???????????????? | | ??????# #????????# #???????????????? | | ??????# ########## ########????????? | | ??????# #????????? | | ??????################### #???????#? | | ????????????????????????# #????## ## | | ????????????????????????# #??? | | ????????????????????????# #?? " | | ??????????????????????### ## | | ????????############### | | ???????? #? | | ???????? ####? | | ???????????## ###### ## ##???? | | ????????????# #????## ##?# #????? | | ????????????# #?????# ##??? #????? | | ????????????# ####### #???? #????? | | ????????????# #????####????? | | ????#?????### ##### ###????????????? | | ????# #??## a##??# #??????????????? | | ????# ## a ##?# #??????????????? | | ????# #?# #??????????????? | | ????# a a### #??????????????? | | ?????# @]a % ## #??????????????? | | ?????## """ a % a #??????????????? | | ??????# """ #####??????????????? | | ?????# """ ###??????????????????? | | ?????# ##????????????????????? | | ?????## #?????????????????????? | | ??????### ##?????????????????????? | | ????????####???????????????????????? | | ???????????????????????????????????? | | ???????????????????????????????????? | | | | | | | | | | | | | | | | | | | | | | | | | | | | | | | +----------------------------------------------------+ Best States ------------- Heat Dissipation 25 Energy Generation 12 Energy Capacity 265 Matter Stores 300 Matter Capacity 300 Sight Range 16 Terrain Scan Density 10 Evasion (%) 53 Recoil Reduction 2 Item Schematics ----------------- None Robot Schematics ------------------ None Fabricated ------------ Nothing Alien Tech Used ----------------- None Achievements -------------- None Challenges ------------ None Game ------ Seed CargoDisruptorMace Manual? 0 Play Time 00:08:29 Cumulative 252.7 hours Start 2022.04.17 @ 00:06:25 End 2022.04.17 @ 00:13:10 Sessions 1 Manual Loads 0 Difficulty Rogue Special Mode None Game No. 124 Rogue 120 Adventurer 0 Explorer 4 Win Type - Total 15 Types 4/0/2/3/1/2/3/0/0 Lore% 75 Gallery% 80 Achievement% 72 Wizard Run 0 Options --------- ASCII 0 Keyboard 0 Movement Mouse Keybinds 0 Fullscreen 1 Font 18/SmallcapsGlow Map View 76x50 Tactical HUD 1 Map Filters NONE Filters NONE Steam 1 RUN: b3d185ea-e422-44b5-8dfb-bf61f76c3345